fUST/lending_fUST_20260518
["ID","MTS","AMOUNT","RATE_DAILY","PERIOD"]
[422552749,1779063040000,-151.0,0.0001,2]
[422552746,1779063040000,-151.0,0.0001,2]
[422552725,1779063040000,-165.79913868,9.997e-05,2]
[422552732,1779063040000,-8124.15779552,9.997e-05,2]
[422552721,1779063040000,-621.78829552,9.913e-05,2]
[422552704,1779063040000,-537.6845,9.693e-05,2]
[422552717,1779063040000,-500.0,9.818e-05,2]
[422552748,1779063040000,-151.0,0.0001,2]
[422552698,1779063040000,-500.0,9.658e-05,2]
[422552701,1779063040000,-500.0,9.658e-05,2]
[422552699,1779063040000,-500.0,9.658e-05,2]
[422552700,1779063040000,-286.54,9.658e-05,2]
[422552697,1779063040000,-500.0,9.658e-05,2]
[422552696,1779063040000,-500.0,9.658e-05,2]
[422552692,1779063040000,-500.0,9.658e-05,2]
[422552694,1779063040000,-500.0,9.658e-05,2]
[422552695,1779063040000,-500.0,9.658e-05,2]
[422552693,1779063040000,-500.0,9.658e-05,2]
[422552707,1779063040000,-238.50481714,9.768e-05,2]
[422552712,1779063040000,-160.0,9.8e-05,2]
[422552703,1779063040000,-162.380719,9.693e-05,2]
[422552713,1779063040000,-160.0,9.8e-05,2]
[422552714,1779063040000,-274.7257465,9.8e-05,2]
[422552710,1779063040000,-160.0,9.8e-05,2]
[422552705,1779063040000,-537.6845,9.693e-05,2]
[422552709,1779063040000,-151.0,9.8e-05,2]
[422552708,1779063040000,-10177.67647015,9.8e-05,2]
[422552711,1779063040000,-160.0,9.8e-05,2]
[422552702,1779063040000,-1174.76405138,9.692e-05,2]
[422552706,1779063040000,-557.5788265,9.748e-05,2]
[422552715,1779063040000,-160.0,9.801e-05,2]
[422552716,1779063040000,-578.20924308,9.803e-05,2]
[422552727,1779063040000,-1492.19224816,9.997e-05,2]
[422552726,1779063040000,-663.19655474,9.997e-05,2]
[422552719,1779063040000,-420.0,9.849e-05,2]
[422552718,1779063040000,-1174.76405138,9.846e-05,2]
[422552720,1779063040000,-599.60298507,9.858e-05,2]
[422552755,1779063040000,-151.0,0.0001,2]
[422552759,1779063040000,-151.0,0.0001,2]
[422552767,1779063040000,-719.04747942,0.00010133,2]
[422552785,1779063040000,-166.0,0.0001045,2]
[422552787,1779063040000,-166.0,0.0001045,2]
[422552789,1779063040000,-166.0,0.0001045,2]
[422552788,1779063040000,-166.0,0.0001045,2]
[422552796,1779063040000,-156.0,0.0001045,2]
[422552804,1779063040000,-156.0,0.0001045,2]
[422552805,1779063040000,-156.0,0.0001045,2]
[422552806,1779063040000,-156.0,0.0001045,2]
[422552795,1779063040000,-172.0,0.0001045,2]
[422552801,1779063040000,-156.0,0.0001045,2]
[422552800,1779063040000,-156.0,0.0001045,2]
[422552802,1779063040000,-156.0,0.0001045,2]
[422552798,1779063040000,-156.0,0.0001045,2]
[422552786,1779063040000,-278.61022012,0.0001045,2]
[422552797,1779063040000,-156.0,0.0001045,2]
[422552803,1779063040000,-156.0,0.0001045,2]
[422552807,1779063040000,-160.71400493,0.0001045,2]
[422552815,1779063040000,-650.0,0.0001045,2]
[422552808,1779063040000,-650.0,0.0001045,2]
[422552817,1779063040000,-650.0,0.0001045,2]
[422552818,1779063040000,-650.0,0.0001045,2]
[422552810,1779063040000,-650.0,0.0001045,2]
[422552811,1779063040000,-650.0,0.0001045,2]
[422552812,1779063040000,-650.0,0.0001045,2]
[422552814,1779063040000,-650.0,0.0001045,2]
[422552809,1779063040000,-225.38977988,0.0001045,2]
[422552813,1779063040000,-650.0,0.0001045,2]
[422552765,1779063040000,-668.65185757,0.00010023,2]
[422552799,1779063040000,-156.0,0.0001045,2]
[422552782,1779063040000,-256.19672836,0.00010412,2]
[422552816,1779063040000,-650.0,0.0001045,2]
[422552783,1779063040000,-1376.54195992,0.00010445,2]
[422552792,1779063040000,-166.0,0.0001045,2]
[422552757,1779063040000,-151.0,0.0001,2]
[422552766,1779063040000,-693.3919763,0.00010078,2]
[422552768,1779063040000,-745.65223616,0.00010188,2]
[422552754,1779063040000,-151.0,0.0001,2]
[422552763,1779063040000,-154.01060343,0.0001,2]
[422552762,1779063040000,-151.0,0.0001,2]
[422552819,1779063040000,-650.0,0.0001045,2]
[422552760,1779063040000,-151.0,0.0001,2]
[422552761,1779063040000,-151.0,0.0001,2]
[422552764,1779063040000,-794.0,0.0001,2]
[422552771,1779063040000,-160.0,0.00010221,2]
[422552769,1779063040000,-1000.0,0.000102,2]
[422552772,1779063040000,-161.67668242,0.00010221,2]
[422552758,1779063040000,-151.0,0.0001,2]
[422552774,1779063040000,-773.2413689,0.00010243,2]
[422552784,1779063040000,-166.0,0.0001045,2]
[422552775,1779063040000,-801.85129955,0.00010298,2]
[422552794,1779063040000,-166.0,0.0001045,2]
[422552793,1779063040000,-166.0,0.0001045,2]
[422552790,1779063040000,-166.0,0.0001045,2]
[422552780,1779063040000,-831.51979763,0.00010353,2]
[422552778,1779063040000,-185.0,0.00010308,2]
[422552791,1779063040000,-166.0,0.0001045,2]
[422552770,1779063040000,-500.0,0.00010206,2]
[422552779,1779063040000,-443.0,0.00010308,2]
[422552773,1779063040000,-557.5788265,0.00010241,2]
[422552776,1779063040000,-647.0,0.00010308,2]
[422552777,1779063040000,-1413.0,0.00010308,2]
[422552781,1779063040000,-862.28603014,0.00010408,2]
[422552846,1779063041000,-650.0,0.0001045,2]
[422552856,1779063041000,-650.0,0.0001045,2]
[422552852,1779063041000,-650.0,0.0001045,2]
[422552845,1779063041000,-650.0,0.0001045,2]
[422552847,1779063041000,-650.0,0.0001045,2]
[422552857,1779063041000,-650.0,0.0001045,2]
[422552849,1779063041000,-650.0,0.0001045,2]
[422552850,1779063041000,-650.0,0.0001045,2]
[422552851,1779063041000,-650.0,0.0001045,2]
[422552855,1779063041000,-650.0,0.0001045,2]
[422552861,1779063041000,-775.57428312,0.0001045,2]
[422552854,1779063041000,-650.0,0.0001045,2]
[422552853,1779063041000,-650.0,0.0001045,2]
[422552858,1779063041000,-650.0,0.0001045,2]
[422552860,1779063041000,-650.0,0.0001045,2]
[422552870,1779063041000,-894.19061326,0.00010463,2]
[422552869,1779063041000,-166.0,0.0001045,2]
[422552859,1779063041000,-650.0,0.0001045,2]
[422552837,1779063041000,-650.0,0.0001045,2]
[422552862,1779063041000,-167.0,0.0001045,2]
[422552848,1779063041000,-650.0,0.0001045,2]
[422552836,1779063041000,-650.0,0.0001045,2]
[422552825,1779063041000,-650.0,0.0001045,2]
[422552840,1779063041000,-650.0,0.0001045,2]
[422552867,1779063041000,-167.0,0.0001045,2]
[422552821,1779063041000,-650.0,0.0001045,2]
[422552822,1779063041000,-650.0,0.0001045,2]
[422552824,1779063041000,-650.0,0.0001045,2]
[422552820,1779063041000,-650.0,0.0001045,2]
[422552823,1779063041000,-650.0,0.0001045,2]
[422552828,1779063041000,-650.0,0.0001045,2]
[422552829,1779063041000,-650.0,0.0001045,2]
[422552830,1779063041000,-650.0,0.0001045,2]
[422552839,1779063041000,-650.0,0.0001045,2]
[422552826,1779063041000,-650.0,0.0001045,2]
[422552831,1779063041000,-650.0,0.0001045,2]
[422552832,1779063041000,-650.0,0.0001045,2]
[422552842,1779063041000,-650.0,0.0001045,2]
[422552843,1779063041000,-650.0,0.0001045,2]
[422552844,1779063041000,-650.0,0.0001045,2]
[422552835,1779063041000,-650.0,0.0001045,2]
[422552838,1779063041000,-650.0,0.0001045,2]
[422552841,1779063041000,-650.0,0.0001045,2]
[422552833,1779063041000,-650.0,0.0001045,2]
[422552827,1779063041000,-650.0,0.0001045,2]
[422552863,1779063041000,-167.0,0.0001045,2]
[422552834,1779063041000,-650.0,0.0001045,2]
[422552864,1779063041000,-167.0,0.0001045,2]
[422552891,1779063041000,-6404.91820894,0.00010871,2]
[422552890,1779063041000,-6806.575101,0.00010834,2]
[422552893,1779063041000,-1433.58977,0.00010895,2]
[422552914,1779063041000,-1282.50395204,0.00010958,2]
[422552898,1779063041000,-553.8193,0.00010958,2]
[422552899,1779063041000,-787.57,0.00010958,2]
[422552897,1779063041000,-1399.8991,0.00010958,2]
[422552900,1779063041000,-1094.67,0.00010958,2]
[422552901,1779063041000,-500.0,0.00010958,2]
[422552892,1779063041000,-160.0,0.00010895,2]
[422552903,1779063041000,-500.0,0.00010958,2]
[422552902,1779063041000,-500.0,0.00010958,2]
[422552905,1779063041000,-2653.93,0.00010958,2]
[422552909,1779063041000,-2653.93,0.00010958,2]
[422552904,1779063041000,-813.01,0.00010958,2]
[422552906,1779063041000,-2653.93,0.00010958,2]
[422552912,1779063041000,-2653.93,0.00010958,2]
[422552913,1779063041000,-2653.93,0.00010958,2]
[422552910,1779063041000,-2653.93,0.00010958,2]
[422552911,1779063041000,-2653.93,0.00010958,2]
[422552908,1779063041000,-2653.93,0.00010958,2]
[422552894,1779063041000,-2707.17954,0.00010895,2]
[422552907,1779063041000,-2653.93,0.00010958,2]
[422552889,1779063041000,-3483.28755,0.00010834,2]
[422552888,1779063041000,-160.0,0.00010834,2]
[422552866,1779063041000,-167.0,0.0001045,2]
[422552868,1779063041000,-169.39236129,0.0001045,2]
[422552871,1779063041000,-500.0,0.0001048,2]
[422552881,1779063041000,-4099.14765372,0.00010756,2]
[422552872,1779063041000,-927.27566595,0.00010518,2]
[422552880,1779063041000,-500.0,0.00010754,2]
[422552874,1779063041000,-961.58486559,0.00010573,2]
[422552883,1779063041000,-4177.969406,0.0001078,2]
[422552877,1779063041000,-633.09990634,0.00010666,2]
[422552882,1779063041000,-160.0,0.0001078,2]
[422552865,1779063041000,-167.0,0.0001045,2]
[422552875,1779063041000,-997.16350561,0.00010628,2]
[422552873,1779063041000,-1024.78691343,0.00010527,2]
[422552879,1779063041000,-265.73022,0.00010749,7]
[422552878,1779063041000,-396.30616012,0.000107,2]
[422552885,1779063041000,-178.00886299,0.00010782,2]
[422552876,1779063041000,-2305.77055522,0.00010641,2]
[422552896,1779063041000,-1467.994,0.00010958,2]
[422552895,1779063041000,-2731.7181,0.00010958,2]
[422552884,1779063041000,-8195.938812,0.0001078,2]
[422552887,1779063041000,-457.86761181,0.00010831,7]
[422552886,1779063041000,-578.20924308,0.00010789,2]
[422552915,1779063042000,-397.50688088,8.955e-05,2]
[422552919,1779063042000,-2653.93,0.00010958,2]
[422552917,1779063042000,-1371.42604796,0.00010958,2]
[422552918,1779063042000,-2653.93,0.00010958,2]
[422552920,1779063042000,-2653.93,0.00010958,2]
[422552916,1779063042000,-469.05811943,0.00010955,2]
[422552924,1779063042000,-2653.93,0.00010958,2]
[422552922,1779063042000,-2653.93,0.00010958,2]
[422552927,1779063042000,-295.04778227,0.00010958,2]
[422552926,1779063042000,-235.63104827,0.00010958,2]
[422552921,1779063042000,-2653.93,0.00010958,2]
[422552923,1779063042000,-2653.93,0.00010958,2]
[422552925,1779063042000,-2418.29895173,0.00010958,2]
[422552928,1779063042000,-388.73192689,0.00010958,2]
[422552970,1779063045000,-500.0,0.00010958,2]
[422552983,1779063045000,-876.11,0.00010958,2]
[422552981,1779063045000,-892.49,0.00010958,2]
[422552982,1779063045000,-814.48,0.00010958,2]
[422552971,1779063045000,-510.84,0.00010958,2]
[422552964,1779063045000,-500.0,0.00010958,2]
[422552963,1779063045000,-500.0,0.00010958,2]
[422552965,1779063045000,-500.0,0.00010958,2]
[422552962,1779063045000,-1081.3,0.00010958,2]
[422552960,1779063045000,-531.22,0.00010958,2]
[422552957,1779063045000,-2654.15885583,0.00010958,2]
[422552966,1779063045000,-500.0,0.00010958,2]
[422552968,1779063045000,-500.0,0.00010958,2]
[422552969,1779063045000,-935.8,0.00010958,2]
[422552956,1779063045000,-2653.93,0.00010958,2]
[422552955,1779063045000,-2653.93,0.00010958,2]
[422552953,1779063045000,-2653.93,0.00010958,2]
[422552954,1779063045000,-2653.93,0.00010958,2]
[422552952,1779063045000,-1970.15029084,0.00010958,2]
[422552950,1779063045000,-1354.3197377,0.00010445,2]
[422552972,1779063045000,-795.39,0.00010958,2]
[422552958,1779063045000,-500.0,0.00010958,2]
[422552967,1779063045000,-500.0,0.00010958,2]
[422552973,1779063045000,-760.93,0.00010958,2]
[422552976,1779063045000,-500.0,0.00010958,2]
[422552974,1779063045000,-500.0,0.00010958,2]
[422553001,1779063045000,-917.77873464,0.00010958,2]
[422553000,1779063045000,-519.42238121,0.00010958,2]
[422552999,1779063045000,-500.0,0.00010958,2]
[422552990,1779063045000,-1292.71,0.00010958,2]
[422552997,1779063045000,-500.0,0.00010958,2]
[422552989,1779063045000,-500.0,0.00010958,2]
[422552988,1779063045000,-500.0,0.00010958,2]
[422552992,1779063045000,-500.0,0.00010958,2]
[422552991,1779063045000,-653.51,0.00010958,2]
[422552987,1779063045000,-1695.36,0.00010958,2]
[422552995,1779063045000,-500.0,0.00010958,2]
[422552986,1779063045000,-500.0,0.00010958,2]
[422552994,1779063045000,-608.28,0.00010958,2]
[422552984,1779063045000,-736.64,0.00010958,2]
[422552985,1779063045000,-500.0,0.00010958,2]
[422552978,1779063045000,-500.0,0.00010958,2]
[422552979,1779063045000,-500.0,0.00010958,2]
[422552977,1779063045000,-500.0,0.00010958,2]
[422552975,1779063045000,-683.39,0.00010958,2]
[422552980,1779063045000,-500.0,0.00010958,2]
[422552993,1779063045000,-500.0,0.00010958,2]
[422553046,1779063046000,-1993.92787555,0.00010341,2]
[422553059,1779063090000,200.0,0.00015977,120]
[422553063,1779063330000,200.0,0.00016521,120]
[422553064,1779063390000,200.0,0.00015925,120]
[422553065,1779063450000,200.0,0.00016588,120]
[422553067,1779063510000,200.0,0.00016672,120]
[422553069,1779063570000,200.0,0.00017538,120]
[422553073,1779063690000,200.0,0.00017034,120]
[422553074,1779063734000,300.0,0.0001703,120]
[422553075,1779063810000,200.0,0.00017412,120]
[422553078,1779063930000,200.0,0.00017354,120]
[422553117,1779064232000,-333.74193024,7.716e-05,2]
[422553120,1779064232000,-386.71214252,8.073e-05,2]
[422553118,1779064232000,-430.78006904,7.716e-05,2]
[422553122,1779064232000,-154.3400424,8.718e-05,2]
[422553119,1779064232000,-3006.07212445,7.794e-05,2]
[422553124,1779064232000,-300.0,8.755e-05,2]
[422553123,1779064232000,-215.23579838,8.755e-05,2]
[422553126,1779064232000,-1052.76442125,8.756e-05,2]
[422553125,1779064232000,-920.0,8.755e-05,2]
[422553121,1779064232000,-512.0,8.362e-05,2]
[422553265,1779064241000,-1541.70162412,8.756e-05,2]
[422553270,1779064243000,-7963.80187317,8.756e-05,2]
[422553271,1779064243000,-1268.0,8.756e-05,2]
[422553287,1779064246000,-21683.39178472,8.756e-05,2]
[422553288,1779064246000,-512.0,9.362e-05,2]
[422553289,1779064246000,-180.62727801,9.539e-05,2]
[422553290,1779064246000,-537.6845,9.539e-05,2]
[422553291,1779064246000,-537.6845,9.539e-05,2]
[422553299,1779064246000,-644.79446246,9.814e-05,2]
[422553292,1779064246000,-557.5788265,9.594e-05,2]
[422553286,1779064246000,-31334.43800907,8.756e-05,2]
[422553294,1779064246000,-160.0,9.661e-05,2]
[422553295,1779064246000,-160.0,9.661e-05,2]
[422553302,1779064246000,-693.3919763,9.924e-05,2]
[422553301,1779064246000,-668.65185757,9.869e-05,2]
[422553293,1779064246000,-578.20924308,9.649e-05,2]
[422553297,1779064246000,-621.78829552,9.759e-05,2]
[422553303,1779064246000,-719.04747942,9.979e-05,2]
[422553296,1779064246000,-599.60298507,9.704e-05,2]
[422553315,1779064247000,-161.67668242,0.00010336,2]
[422553319,1779064247000,-207.07204241,0.000104,2]
[422553332,1779064247000,-500.0,0.00010897,2]
[422553322,1779064247000,-997.16350561,0.00010474,2]
[422553318,1779064247000,-927.27566595,0.00010364,2]
[422553316,1779064247000,-160.0,0.00010336,2]
[422553328,1779064247000,-500.0,0.00010897,2]
[422553317,1779064247000,-512.0,0.00010362,2]
[422553314,1779064247000,-894.19061326,0.00010309,2]
[422553320,1779064247000,-961.58486559,0.00010419,2]
[422553309,1779064247000,-801.85129955,0.00010144,2]
[422553312,1779064247000,-862.28603014,0.00010254,2]
[422553311,1779064247000,-831.51979763,0.00010199,2]
[422553310,1779064247000,-325.8747223,0.00010192,2]
[422553306,1779064247000,-599.60298507,0.00010087,2]
[422553308,1779064247000,-500.0,0.00010114,2]
[422553305,1779064247000,-456.32032817,0.00010073,2]
[422553304,1779064247000,-745.65223616,0.00010034,2]
[422553307,1779064247000,-773.2413689,0.00010089,2]
[422553313,1779064247000,-396.0,0.000103,2]
[422553321,1779064247000,-244.19605963,0.00010465,7]
[422553331,1779064247000,-500.0,0.00010897,2]
[422553324,1779064247000,-185.0,0.00010544,2]
[422553346,1779064247000,-9342.75349613,0.00010898,2]
[422553340,1779064247000,-500.0,0.00010897,2]
[422553337,1779064247000,-500.0,0.00010897,2]
[422553338,1779064247000,-500.0,0.00010897,2]
[422553336,1779064247000,-582.34700196,0.00010897,2]
[422553341,1779064247000,-500.0,0.00010897,2]
[422553339,1779064247000,-400.0,0.00010897,2]
[422553333,1779064247000,-500.0,0.00010897,2]
[422553345,1779064247000,-500.0,0.00010897,2]
[422553327,1779064247000,-500.0,0.00010897,2]
[422553343,1779064247000,-500.0,0.00010897,2]
[422553323,1779064247000,-2203.0,0.00010544,2]
[422553325,1779064247000,-466.25472738,0.00010739,2]
[422553329,1779064247000,-500.0,0.00010897,2]
[422553326,1779064247000,-439.01135161,0.00010897,2]
[422553334,1779064247000,-500.0,0.00010897,2]
[422553344,1779064247000,-500.0,0.00010897,2]
[422553342,1779064247000,-500.0,0.00010897,2]
[422553330,1779064247000,-500.0,0.00010897,2]
[422553335,1779064247000,-500.0,0.00010897,2]
[422553348,1779064350000,200.0,0.00015779,120]
[422553349,1779064410000,200.0,0.00016134,120]
[422553350,1779064462000,2661.79,0.00017808,120]
[422553351,1779064470000,200.0,0.00015896,120]
[422553358,1779064590000,200.0,0.00017498,120]
[422553366,1779064950000,200.0,0.00016752,120]
[422553373,1779065010000,200.0,0.0001776,120]
[422553375,1779065070000,200.0,0.00017024,120]
[422553414,1779065434000,-719.76,8.148e-05,2]
[422553470,1779065438000,-53164.01805315,0.00010857,2]
[422553469,1779065438000,-160.18135255,0.000108,3]
[422553474,1779065438000,-194.88330926,0.00010925,7]
[422553472,1779065438000,-399.60261434,0.000109,2]
[422553475,1779065438000,-171.01,0.00010939,2]
[422553471,1779065438000,-6053.8448033,0.00010858,2]
[422553454,1779065438000,-518.04851176,9.927e-05,2]
[422553464,1779065438000,-213.324,0.0001051,2]
[422553467,1779065438000,-406.99343271,0.00010653,7]
[422553465,1779065438000,-150.362,0.0001051,2]
[422553466,1779065438000,-160.0,0.00010625,2]
[422553463,1779065438000,-713.246,0.0001051,2]
[422553457,1779065438000,-203.49671636,0.00010222,7]
[422553458,1779065438000,-444.15611854,0.00010367,2]
[422553449,1779065438000,-905.9638835,9.492e-05,2]
[422553451,1779065438000,-161.67668242,9.656e-05,2]
[422553455,1779065438000,-500.0,0.00010118,2]
[422553450,1779065438000,-42184.1082683,9.492e-05,2]
[422553462,1779065438000,-2529.86722574,0.0001041,2]
[422553448,1779065438000,-2897.8456035,9.492e-05,2]
[422553452,1779065438000,-537.6845,9.872e-05,2]
[422553460,1779065438000,-159.0,0.000104,2]
[422553446,1779065438000,-3110.3010971,9.479e-05,2]
[422553447,1779065438000,-300.0,9.491e-05,2]
[422553445,1779065438000,-376.40349029,8.367e-05,2]
[422553443,1779065438000,-3646.50508409,8.148e-05,2]
[422553444,1779065438000,-633.73491591,8.148e-05,2]
[422553473,1779065438000,-177.15348,0.00010901,7]
[422553456,1779065438000,-152.0,0.00010181,2]
[422553468,1779065438000,-310.83648492,0.00010739,2]
[422553453,1779065438000,-9213.85913865,9.89e-05,2]
[422553477,1779065438000,-500.0,0.00010957,2]
[422553476,1779065438000,-610.49014907,0.0001094,7]
[422553506,1779065438000,-278.77947177,0.00010958,2]
[422553504,1779065438000,-500.0,0.00010958,2]
[422553505,1779065438000,-500.0,0.00010958,2]
[422553500,1779065438000,-2191.3382,0.00010958,2]
[422553497,1779065438000,-500.0,0.00010957,2]
[422553499,1779065438000,-2706.7461,0.00010958,2]
[422553498,1779065438000,-500.0,0.00010957,2]
[422553501,1779065438000,-1224.5186,0.00010958,2]
[422553495,1779065438000,-500.0,0.00010957,2]
[422553494,1779065438000,-500.0,0.00010957,2]
[422553503,1779065438000,-525.58977321,0.00010958,2]
[422553491,1779065438000,-500.0,0.00010957,2]
[422553502,1779065438000,-500.0,0.00010958,2]
[422553496,1779065438000,-500.0,0.00010957,2]
[422553488,1779065438000,-500.0,0.00010957,2]
[422553493,1779065438000,-500.0,0.00010957,2]
[422553478,1779065438000,-391.21083547,0.00010957,2]
[422553479,1779065438000,-500.0,0.00010957,2]
[422553480,1779065438000,-500.0,0.00010957,2]
[422553490,1779065438000,-500.0,0.00010957,2]
[422553485,1779065438000,-500.0,0.00010957,2]
[422553481,1779065438000,-500.0,0.00010957,2]
[422553487,1779065438000,-500.0,0.00010957,2]
[422553489,1779065438000,-500.0,0.00010957,2]
[422553486,1779065438000,-500.0,0.00010957,2]
[422553484,1779065438000,-500.0,0.00010957,2]
[422553483,1779065438000,-500.0,0.00010957,2]
[422553492,1779065438000,-526.68896502,0.00010957,2]
[422553482,1779065438000,-500.0,0.00010957,2]
[422553550,1779065439000,-668.49,0.00010958,2]
[422553543,1779065439000,-500.0,0.00010958,2]
[422553547,1779065439000,-500.0,0.00010958,2]
[422553548,1779065439000,-2382.26,0.00010958,2]
[422553538,1779065439000,-721.98,0.00010958,2]
[422553546,1779065439000,-500.0,0.00010958,2]
[422553544,1779065439000,-809.11,0.00010958,2]
[422553545,1779065439000,-671.23,0.00010958,2]
[422553542,1779065439000,-2173.75,0.00010958,2]
[422553539,1779065439000,-500.0,0.00010958,2]
[422553552,1779065439000,-500.0,0.00010958,2]
[422553549,1779065439000,-500.0,0.00010958,2]
[422553551,1779065439000,-500.0,0.00010958,2]
[422553572,1779065439000,-272.32322489,0.00010958,2]
[422553560,1779065439000,-1102.09,0.00010958,2]
[422553554,1779065439000,-778.83,0.00010958,2]
[422553553,1779065439000,-2320.63,0.00010958,2]
[422553561,1779065439000,-500.0,0.00010958,2]
[422553555,1779065439000,-500.0,0.00010958,2]
[422553562,1779065439000,-500.0,0.00010958,2]
[422553557,1779065439000,-500.0,0.00010958,2]
[422553556,1779065439000,-546.8,0.00010958,2]
[422553558,1779065439000,-724.05,0.00010958,2]
[422553563,1779065439000,-500.0,0.00010958,2]
[422553564,1779065439000,-500.0,0.00010958,2]
[422553565,1779065439000,-500.0,0.00010958,2]
[422553537,1779065439000,-1289.53,0.00010958,2]
[422553566,1779065439000,-506.14,0.00010958,2]
[422553559,1779065439000,-500.0,0.00010958,2]
[422553535,1779065439000,-500.0,0.00010958,2]
[422553524,1779065439000,-736.8,0.00010958,2]
[422553534,1779065439000,-500.0,0.00010958,2]
[422553567,1779065439000,-500.0,0.00010958,2]
[422553516,1779065439000,-500.0,0.00010958,2]
[422553515,1779065439000,-500.0,0.00010958,2]
[422553507,1779065439000,-886.75,0.00010958,2]
[422553509,1779065439000,-500.0,0.00010958,2]
[422553508,1779065439000,-500.0,0.00010958,2]
[422553512,1779065439000,-808.16,0.00010958,2]
[422553510,1779065439000,-500.0,0.00010958,2]
[422553514,1779065439000,-500.0,0.00010958,2]
[422553511,1779065439000,-2473.63,0.00010958,2]
[422553513,1779065439000,-1281.23,0.00010958,2]
[422553517,1779065439000,-500.0,0.00010958,2]
[422553519,1779065439000,-500.0,0.00010958,2]
[422553521,1779065439000,-759.29,0.00010958,2]
[422553520,1779065439000,-500.0,0.00010958,2]
[422553522,1779065439000,-526.69,0.00010958,2]
[422553518,1779065439000,-758.27,0.00010958,2]
[422553528,1779065439000,-500.0,0.00010958,2]
[422553527,1779065439000,-795.65,0.00010958,2]
[422553525,1779065439000,-500.0,0.00010958,2]
[422553526,1779065439000,-943.56,0.00010958,2]
[422553523,1779065439000,-500.0,0.00010958,2]
[422553540,1779065439000,-932.71,0.00010958,2]
[422553530,1779065439000,-500.0,0.00010958,2]
[422553531,1779065439000,-1066.46,0.00010958,2]
[422553541,1779065439000,-500.0,0.00010958,2]
[422553532,1779065439000,-500.0,0.00010958,2]
[422553533,1779065439000,-500.0,0.00010958,2]
[422553529,1779065439000,-500.0,0.00010958,2]
[422553536,1779065439000,-500.0,0.00010958,2]
[422553570,1779065439000,-1533.58,0.00010958,2]
[422553593,1779065439000,-500.0,0.00010958,2]
[422553574,1779065439000,-893.08,0.00010958,2]
[422553617,1779065439000,-1586.38,0.00010958,2]
[422553616,1779065439000,-582.19,0.00010958,2]
[422553608,1779065439000,-1154.93,0.00010958,2]
[422553607,1779065439000,-500.0,0.00010958,2]
[422553606,1779065439000,-500.0,0.00010958,2]
[422553618,1779065439000,-500.0,0.00010958,2]
[422553609,1779065439000,-500.0,0.00010958,2]
[422553612,1779065439000,-966.84,0.00010958,2]
[422553613,1779065439000,-5015.67,0.00010958,2]
[422553615,1779065439000,-500.0,0.00010958,2]
[422553610,1779065439000,-762.25,0.00010958,2]
[422553611,1779065439000,-1392.23,0.00010958,2]
[422553614,1779065439000,-933.03,0.00010958,2]
[422553605,1779065439000,-500.0,0.00010958,2]
[422553620,1779065439000,-1435.82,0.00010958,2]
[422553625,1779065439000,-1893.99,0.00010958,2]
[422553632,1779065439000,-641.23,0.00010958,2]
[422553631,1779065439000,-500.0,0.00010958,2]
[422553624,1779065439000,-2525.37,0.00010958,2]
[422553630,1779065439000,-500.0,0.00010958,2]
[422553571,1779065439000,-817.25,0.00010958,2]
[422553622,1779065439000,-654.91,0.00010958,2]
[422553626,1779065439000,-500.0,0.00010958,2]